Cogmind - Beta 14 @@@ ROGUE MODE // 2024.11.14 @ 20:55:42 Player: CrossedViper Result: Destroyed by P-70 Sage with Tesla Rifle Performance ------------- Evolutions (5) 2500 Regions Visited (15) 3000 Robots Destroyed (209) 1045 Value Destroyed (8891) 8891 Prototype IDs (29) 580 Alien Tech Used (0) 0 Bonus (-132) -132 TOTAL SCORE: 15884 Bonus ------- High Alert Combat Kills 1316 Follower Combat Kills 330 Entered Garrisons 400 MAIN.C Attacked Warlord 500 Friendly Fire -2678 Cogmind --------- Core Integrity 0/1000 Matter 300/300 Energy 99/100 System Corruption 10% Temperature Cool (12) Movement Core (50) Location -4/Proximity Caves Parts ------- > --- POWER (2) -------- (None) > --- PROPULSION (5) --- (None) > --- UTILITY (7) ------ Core Analyzer > --- WEAPON (3) ------- (None) > --- INVENTORY (5) ---- Huge Storage Unit YI-UF0's Bottomless Matter Pit (1371) Improved Powered Armor Improved Force Field Multitool Peak State ------------ > --- POWER ------------ Neutrino Core Micro Fission Core > --- PROPULSION ------- Armored Medium Treads Armored Medium Treads Treaded Armored-Titanium Exoskeleton > --- UTILITY ---------- Armored Scrap Engine Improved Cooling System High-capacity Storage Unit Core Analyzer Experimental Propulsion Shielding Layered Medium Armor Plating > --- WEAPON ----------- Hypervelocity Gauss Rifle Hvy. Ballistic Mass Construct/C > --- INVENTORY -------- Improved Treads Advanced Heat Sink Coolant Injector Huge Storage Unit YI-UF0's Bottomless Matter Pit Transmission Jammer Rainbow Chip Long-range Proton Cannon Cooled Plasma Cannon Advanced Plasma Cannon Heavy Mass Driver Heavy Mass Driver Guided EMP Blaster Subdweller Shrapnel Launcher Subdweller Shrapnel Launcher Multitool Impact Mace [Rating: 95] Favorites ----------- Power Improved Ion Engine Engine Improved Ion Engine Power Core Micro Fission Core Propulsion Light Treads Treads Light Treads Utility High-capacity Storage Unit Device Improved Cooling System Storage High-capacity Storage Unit Processor Core Analyzer Hackware Makeshift Hacking Suite Protection Core Shielding Weapon Heavy Assault Rifle Energy Gun Subdweller Laser Energy Cannon Heavy Plasma Cannon Ballistic Gun Heavy Assault Rifle Ballistic Cannon Constructs Launcher YI-UF0's Doublenader Impact Weapon Impact Mace Build | -11 -10 -10 -10 -8 -8 -7 -7 -7 -7 -7 -5 -5 -5 -5 -4 ------- Run | Yrd Mat Min Sub Mat Gar Fac Gar Fac Sto Rec Fac Upp Upp War Pro Slots Evolved 10 | . . . . 4 . 2 . . . . 4 . . . . Power 1 | . . . . . . . . . . . 1 . . . . Propulsion 3 | . . . . 1 . 1 . . . . 1 . . . . Utility 5 | . . . . 3 . 1 . . . . 1 . . . . Weapon 1 | . . . . . . . . . . . 1 . . . . Parts Attached 166 | 7 12 5 17 10 22 2 6 14 25 4 16 9 8 6 3 Power 12 | 1 3 . 2 . 2 . . 1 1 . 2 . . . . Engine 8 | 1 2 . 2 . 2 . . 1 . . . . . . . Core 4 | . 1 . . . . . . . 1 . 2 . . . . Reactor . | . . . . . . . . . . . . . . . . Propulsion 39 | 2 4 . 4 2 7 1 2 4 6 2 4 . 1 . . Treads 39 | 2 4 . 4 2 7 1 2 4 6 2 4 . 1 . . Leg . | . . . . . . . . . . . . . . . . Wheel . | . . . . . . . . . . . . . . . . Hover . | . . . . . . . . . . . . . . . . Flight . | . . . . . . . . . . . . . . . . Utility 51 | 2 3 2 . 4 4 1 . 5 3 1 7 6 5 5 3 Device 23 | 1 . . . 3 2 . . 2 2 1 2 3 5 2 . Storage 5 | 1 2 1 . . . . . 1 . . . . . . . Processor 8 | . . . . . 1 . . . . . 2 . . 2 3 Hackware 1 | . . . . . . 1 . . . . . . . . . Protection 14 | . 1 1 . 1 1 . . 2 1 . 3 3 . 1 . Artifact . | . . . . . . . . . . . . . . . . Weapon 64 | 2 2 3 11 4 9 . 4 4 15 1 3 3 2 1 . Energy Gun 10 | . 1 . 2 3 2 . . . 1 . . 1 . . . Energy Cannon 10 | . 1 . . . 1 . 2 2 3 1 . . . . . Ballistic Gun 30 | 2 . 2 9 1 5 . 1 . 7 . 2 1 . . . Ballistic Cannon 4 | . . . . . . . . . 1 . 1 . 1 1 . Launcher 9 | . . 1 . . 1 . 1 2 2 . . 1 1 . . Special Weapon . | . . . . . . . . . . . . . . . . Impact Weapon 1 | . . . . . . . . . 1 . . . . . . Slashing Weapon . | . . . . . . . . . . . . . . . . Piercing Weapon . | . . . . . . . . . . . . . . . . Special Melee Weapon . | . . . . . . . . . . . . . . . . Unidentified Prototypes 14 | . . 2 . 1 . . . 1 7 1 1 . 1 . . Parts Lost 47 | . . . 4 2 9 . 2 6 3 . . 1 2 14 4 Power 3 | . . . . . . . . . . . . 1 1 1 . Propulsion 19 | . . . 3 1 5 . 2 2 . . . . 1 5 . Utility 19 | . . . . . 2 . . 4 2 . . . . 7 4 Weapon 6 | . . . 1 1 2 . . . 1 . . . . 1 . Highest Loss Streak 9 | . . . 1 1 5 . 1 5 2 . . 1 2 9 4 To Critical Strikes . | . . . . . . . . . . . . . . . . Average Slot Usage (%) 91 | . 99 100 99 91 97 98 99 97 98 91 73 70 66 54 17 Engine 7 | . 10 14 14 9 8 7 7 7 5 . . . . . . Core 2 | . 3 . . . . . . . 1 7 9 10 6 3 . Treads 25 | . 27 28 27 26 26 30 29 29 30 25 16 17 16 14 . Device 11 | . 8 . . 16 18 15 15 16 20 25 19 11 15 13 . Storage 9 | . 14 14 14 9 9 7 7 7 7 7 5 5 5 4 . Processor 2 | . . . . . 5 7 7 5 . . 4 11 6 8 17 Hackware 1 | . . . . . . 5 7 7 7 4 . . . . . Protection 8 | . 5 13 14 11 10 7 7 5 8 4 4 4 5 2 . Energy Gun 3 | . 5 . 6 9 5 7 2 . . . . . . . . Energy Cannon 2 | . 5 1 . . 5 7 7 6 2 4 2 1 . . . Ballistic Gun 11 | . 17 26 21 8 6 . 4 7 10 6 4 . . . . Peak Build Rating 95 | 7 11 19 16 24 46 51 60 64 57 68 95 89 93 91 29 Average Rating 41 | 5 9 11 14 21 34 50 57 60 53 57 83 83 88 78 23 On Entrance 42 | . 7 10 12 16 24 46 51 60 57 55 66 82 83 91 19 Naked Turns . | . . . . . . . . . . . . . . . . Heaviest Build 94 | 12 53 53 56 59 79 79 81 81 72 67 94 76 79 69 . Greatest Support 126 | 40 40 40 43 69 69 83 103 105 98 87 122 122 126 99 3 Greatest Overweight (x) 2 | . 1 1 1 . 1 . . . . 2 1 . . . . Average Overweight (x) . | . . 1 1 . . . . . . . . . . . . Largest Inventory Capacity 20 | 8 20 20 20 20 20 20 20 20 20 20 20 20 20 20 5 Average Capacity 19 | 7 14 20 20 20 20 20 20 20 20 20 20 20 20 18 5 Most Carried 20 | 4 19 20 20 20 20 19 19 20 20 20 20 20 20 20 5 Average Carried 18 | 2 13 19 18 17 19 18 17 18 19 19 19 19 18 16 5 Final Capacity 20 | 8 20 20 20 20 20 20 20 20 20 20 20 20 20 5 5 Final Carried 20 | 4 19 19 18 19 20 19 17 16 20 18 19 20 20 5 5 Scrap Engine Consumption 48 | . . . . . . . . . . 17 14 9 8 . . Constructs Created 3 | . . . . . . . . . . 2 . 1 . . . Constructs Modified 18 | . . . . . . . . . . 5 5 4 4 . . Class Distribution -------------------- 51% | Mutant 23% | Scavenger-Mutant 10% | Construct 9% | Commander-Mutant Dominant Class ---------------- Mutant | -10/Materials Mutant | -10/Mines Mutant | -10/Subcaves Mutant | -8/Materials Scavenger-Mutant | -8/Garrison Scavenger-Mutant | -7/Factory Scavenger-Mutant | -7/Garrison Scavenger-Mutant | -7/Factory Mutant | -7/Storage Commander-Mutant | -7/Recycling Gunner | -5/Factory Construct | -5/Upper Caves Construct | -5/Upper Caves Construct | -5/Warlord Mutant | -4/Proximity Caves Resources | -11 -10 -10 -10 -8 -8 -7 -7 -7 -7 -7 -5 -5 -5 -5 -4 ----------- Run | Yrd Mat Min Sub Mat Gar Fac Gar Fac Sto Rec Fac Upp Upp War Pro Matter Collected 7406 | 298 297 152 1480 473 771 104 265 412 1019 388 577 201 513 326 130 Remotely 272 | . . . . 272 . . . . . . . . . . . Salvage Created 9397 | 112 725 115 723 490 1123 104 466 1056 1250 1055 1062 244 616 256 . Parts 488 | 5 54 4 45 24 74 5 23 46 58 47 53 15 28 7 . Haulers Intercepted 8 | . 2 . . 2 . . . . 2 . 1 . 1 . . Recyclers Shooed 7 | . 1 1 . . . . . 1 2 1 1 . . . . Parts Field Recycled . | . . . . . . . . . . . . . . . . Retrieved Matter . | . . . . . . . . . . . . . . . . Parts Self-Destructed 47 | . . . 14 . . . . . . . . 10 23 . . Prevented 2 | . . . . . . . . . . . . 1 . . 1 Kills | -11 -10 -10 -10 -8 -8 -7 -7 -7 -7 -7 -5 -5 -5 -5 -4 ------- Run | Yrd Mat Min Sub Mat Gar Fac Gar Fac Sto Rec Fac Upp Upp War Pro Combat Hostiles Destroyed 165 | . 17 1 18 6 26 1 14 19 20 3 11 9 16 4 . Guns 88 | . 15 1 18 6 12 . 4 6 19 2 5 . . . . Cannons 46 | . 2 . . . 3 1 6 8 . 1 5 5 11 4 . AOE 27 | . . . . . 11 . 4 5 1 . . 4 2 . . Classes Destroyed 18 | 2 5 . 2 4 1 . 2 2 . . . . . . . Worker 5 | . 1 . . . . . . . 1 . 3 . . . . Builder 2 | . . . . 1 . . . . 1 . . . . . . Tunneler 2 | 1 . . . . . . . 1 . . . . . . . Hauler 8 | . 2 . . 2 . . . . 2 . 1 . 1 . . Recycler 12 | 1 . . . . . . . . 1 8 2 . . . . Operator 2 | . . . . 1 . . . 1 . . . . . . . Watcher 6 | . 3 . . 1 . 1 . . . . 1 . . . . Swarmer 33 | . 5 1 3 . 4 . 7 . . . . 5 8 . . Cutter 2 | . . . . . . . 2 . . . . . . . . Grunt 71 | . 12 . 2 2 12 . 3 14 10 5 3 1 7 . . Brawler 1 | . . . . . . . . 1 . . . . . . . Duelist 2 | . . . . . . . . 2 . . . . . . . Sentry 29 | . . . . 2 9 1 1 1 8 3 3 . 1 . . Hunter 5 | . . . . 2 . . . . . . . 3 . . . Programmer 7 | . . . . . . . 1 1 1 . 4 . . . . Behemoth 2 | . . . . . 1 . . . . . 1 . . . . Artisan 1 | . . . 1 . . . . . . . . . . . . Subdweller 13 | . . . 13 . . . . . . . . . . . . Thug 2 | . . . . . . . . 1 . . . . . 1 . Bouncer 1 | . . . . . . . . . . . . . . 1 . Marauder 1 | . . . . . . . . . . . . . . 1 . Best Kill Streak 11 | 1 5 1 2 2 11 1 4 7 10 8 3 5 6 1 . Combat Bots Only 11 | . 5 1 2 2 11 1 4 7 8 1 2 5 5 1 . Max Kills in Single Turn 4 | 1 2 1 1 2 4 1 4 3 1 1 2 3 2 1 . Gunslinging 1 | . 1 . . 1 . . . . . . . . . . . Exploded 4 | . . . . . 4 . 4 3 1 . . 3 2 . . Melee . | . . . . . . . . . . . . . . . . Uniques/NPCs Destroyed 3 | . . 1 . . . . . . 1 . . . . 1 . YI-UF0 (-10/Mines) 01-MTF (-7/Storage) LV-01A (-5/Warlord) Combat | -11 -10 -10 -10 -8 -8 -7 -7 -7 -7 -7 -5 -5 -5 -5 -4 -------- Run | Yrd Mat Min Sub Mat Gar Fac Gar Fac Sto Rec Fac Upp Upp War Pro Hostile Shots Fired 1221 | . 52 11 89 38 130 42 35 77 283 26 73 29 66 227 43 Missed 364 | . 7 3 25 12 35 17 4 20 99 8 19 14 15 71 15 Damage Taken 13498 | . 502 62 1219 396 1681 175 557 1009 1665 339 1198 283 940 2856 616 Core 1776 | . 88 6 123 29 211 21 45 134 96 19 139 . 45 297 523 Absorbed by Shields 75 | . . . . . 75 . . . . . . . . . . Redirected to Shielding 69 | . 2 1 25 6 18 . . . 17 . . . . . . Ignored by Resistances 94 | . . . . . . . . 31 46 17 . . . . . Regen/Repaired (Parts) 418 | . 100 . . . . . . . . . 127 125 66 . . Core Remaining (%) 56 | 100 . . 13 . 56 . . . . 55 . . . . . Volleys Fired 722 | 7 57 17 124 40 91 8 37 46 97 49 55 17 41 36 . Largest 2 | 2 2 2 2 2 2 2 2 2 2 2 2 1 1 1 . Hottest 220 | 40 85 43 120 120 155 155 173 120 120 118 161 128 220 220 . Shots Fired 1232 | 14 114 34 219 79 154 9 65 88 186 71 105 17 41 36 . Gun 916 | 14 101 34 219 79 131 1 28 40 171 47 51 . . . . Cannon 303 | . 13 . . . 19 8 36 45 13 24 54 15 40 36 . Launcher 13 | . . . . . 4 . 1 3 2 . . 2 1 . . Special . | . . . . . . . . . . . . . . . . Kinetic 897 | 14 77 34 185 40 104 . 10 41 173 51 96 11 25 36 . Thermal 311 | . 37 . 34 32 36 9 54 45 13 20 9 6 16 . . Explosive 7 | . . . . . 4 . 1 2 . . . . . . . Electromagnetic 17 | . . . . 7 10 . . . . . . . . . . Robot Hit Streak 45 | 4 12 5 45 13 20 14 6 12 16 17 9 9 6 10 . Robot Miss Streak 10 | 2 6 3 3 3 3 1 5 6 10 2 4 1 2 2 . Penetration Max 1 | . . . . . 1 . . . . 1 1 . . . . Secondary Targets 8 | . 1 . . 1 4 . . . 2 . . . . . . Max Gunslinging Chain 1 | . 1 . . 1 1 . . . 1 . . . . . . Shots Hit Robots 727 | 8 58 20 123 54 92 7 23 46 119 51 66 11 20 29 . Core Hits 360 | 4 34 5 37 19 59 3 20 37 55 23 30 14 13 7 . Critical Kills 26 | . . . 2 . . . . . 4 1 12 1 6 . . Critical Parts Destroyed 19 | . 1 . . 2 . . . . . 1 12 . 3 . . Critical Strikes 48 | . 2 . 3 2 . . . . 4 2 24 1 9 1 . Burn 1 | . 1 . . . . . . . . . . . . . . Meltdown 5 | . . . . . . . . . . . 2 . 3 . . Destroy 41 | . 1 . 3 2 . . . . 4 2 22 1 6 . . Blast 1 | . . . . . . . . . . . . . . 1 . Melee Attacks . | . . . . . . . . . . . . . . . . Impact . | . . . . . . . . . . . . . . . . Slashing . | . . . . . . . . . . . . . . . . Piercing . | . . . . . . . . . . . . . . . . Sneak Attacks . | . . . . . . . . . . . . . . . . Combat Hostiles . | . . . . . . . . . . . . . . . . Follow-up Attacks . | . . . . . . . . . . . . . . . . Damage Inflicted 20282 | 79 850 273 2226 899 2916 195 977 1935 2697 1269 1585 652 1563 2166 . Guns 9747 | 79 666 273 2226 899 1524 25 237 558 2156 769 335 . . . . Cannons 7787 | . 145 . . . 366 170 516 774 219 500 1227 404 1300 2166 . Explosions 2680 | . . . . . 1026 . 224 602 317 . . 248 263 . . Melee . | . . . . . . . . . . . . . . . . Ramming 68 | . 39 . . . . . . 1 5 . 23 . . . . Kinetic 13035 | 79 428 273 1963 401 1045 . 28 839 2448 819 1405 368 773 2166 . Thermal 5372 | . 383 . 263 390 742 195 725 774 219 450 157 284 790 . . Explosive 1545 | . . . . . 975 . 224 321 25 . . . . . . Electromagnetic 262 | . . . . 108 154 . . . . . . . . . . Impact . | . . . . . . . . . . . . . . . . Slashing . | . . . . . . . . . . . . . . . . Piercing . | . . . . . . . . . . . . . . . . Highest Corruption 13 | . . . . . . 1 2 9 13 13 2 2 2 2 8 Average Corruption 6 | . . . . . . 1 1 3 11 13 1 2 1 1 2 Corruption Purged 2 | . . . . . . . . . . . . . 2 . . Corruption Blocked . | . . . . . . . . . . . . . . . . Effects 173 | . . . . . . 1 12 19 50 68 2 10 10 . 1 Message Errors 38 | . . . . . . . 3 4 6 19 1 3 2 . . Matter Fused 42 | . . . . . . 1 5 6 9 17 . 2 2 . . Heat Flow Errors 25 | . . . . . . . . 2 11 8 . 2 2 . . Energy Discharges 13 | . . . . . . . 1 1 2 7 . 1 1 . . Parts Rejected 1 | . . . . . . . . . . . . 1 . . . Data Loss (minor) 21 | . . . . . . . 1 3 5 7 1 1 2 . 1 Data Loss (major) 11 | . . . . . . . . . 5 5 . . 1 . . Misfires 11 | . . . . . . . . 2 4 5 . . . . . Alerts 2 | . . . . . . . . 1 1 . . . . . . Weapon Failures 9 | . . . . . . . 2 . 7 . . . . . . Overload Shots . | . . . . . . . . . . . . . . . . Overflow Damage 330 | . . . . . 3 . . 8 16 . 23 32 183 65 . Projectiles 229 | . . . . . . . . . . . 23 32 109 65 . Explosions 101 | . . . . . 3 . . 8 16 . . . 74 . . Melee . | . . . . . . . . . . . . . . . . Knockbacks 18 | . . . . . . . . . . 2 7 2 3 4 . Impact . | . . . . . . . . . . . . . . . . Kinetic 17 | . . . . . . . . . . 1 7 2 3 4 . Secondary 1 | . . . . . . . . . . 1 . . . . . Self-Inflicted Damage 391 | . . . . . 31 . . 153 56 . . 36 115 . . Shots 9 | . . . . . 1 . . 4 1 . . 1 2 . . Rammed 10 | . 8 . . . . . . 1 1 . . . . . . Targets Rammed 12 | . 8 . . . . . . 1 1 . 2 . . . . Kicked . | . . . . . . . . . . . . . . . . Crushed 2 | . . . . . . . . . . . 2 . . . . Highest Temperature 450 | . 180 . 9 66 330 136 367 225 333 390 239 144 414 450 . Average Temperature 92 | . 59 . 3 30 105 55 106 58 104 97 78 54 141 173 . Received Heat Transfer 2876 | . 126 . 192 99 603 48 162 336 603 236 210 . 189 12 60 Effects 17 | . . . . . 4 . . . 2 . . . 10 1 . Shutdowns 2 | . . . . . . . . . . . . . 1 1 . Energy Bleed 1 | . . . . . 1 . . . . . . . . . . Interference 10 | . . . . . 3 . . . 2 . . . 5 . . Matter Decay 1 | . . . . . . . . . . . . . 1 . . Short Circuit 1 | . . . . . . . . . . . . . 1 . . Damage (major) 2 | . . . . . . . . . . . . . 2 . . Siege Activations . | . . . . . . . . . . . . . . . . Robots Corrupted . | . . . . . . . . . . . . . . . . Combat Hostiles . | . . . . . . . . . . . . . . . . Parts Fried 1 | . . . . . 1 . . . . . . . . . . Impact Corruptions . | . . . . . . . . . . . . . . . . Robots Melted 5 | . . . . . . . . . . . 2 . 3 . . Combat Hostiles 4 | . . . . . . . . . . . 1 . 3 . . Parts Melted 12 | . 2 . . . 1 1 1 2 . 2 2 . 1 . . Heat Transferred 7237 | . 925 . 325 475 1049 259 993 1200 400 661 250 250 450 . . Parts Sabotaged . | . . . . . . . . . . . . . . . . Parts Stolen . | . . . . . . . . . . . . . . . . Parts Stripped . | . . . . . . . . . . . . . . . . Power Chain Reactions 1 | . . . . . 1 . . . . . . . . . . Alert | -11 -10 -10 -10 -8 -8 -7 -7 -7 -7 -7 -5 -5 -5 -5 -4 ------- Run | Yrd Mat Min Sub Mat Gar Fac Gar Fac Sto Rec Fac Upp Upp War Pro Peak Influence 1139 | 10 221 86 . 282 1139 680 1045 907 905 418 418 . . . . Initial 597 | . 6 36 . 27 183 597 477 548 404 349 330 . . . . Average 452 | 2 111 34 . 150 794 639 808 762 718 227 258 . . . . Maximum Alert Level 4 | . 1 . . 1 4 2 3 3 3 2 2 . . . . Low Security (%) 33 | 100 96 100 . 67 2 . . . . 36 29 . . . . Level 1 19 | . 3 . . 32 6 . . . . 62 63 . . . . Level 2 15 | . . . . . 12 100 24 35 41 1 7 . . . . Level 3 30 | . . . . . 73 . 75 64 58 . . . . . . Level 4 . | . . . . . 4 . . . . . . . . . . Level 5 . | . . . . . . . . . . . . . . . . High Security . | . . . . . . . . . . . . . . . . Max Security . | . . . . . . . . . . . . . . . . Squads Dispatched 22 | . 6 . . 1 . 1 . 7 4 . 2 . . . 1 Investigation 8 | . 5 . . . . 1 . 1 1 . . . . . . Extermination 3 | . . . . . . . . 1 1 . 1 . . . . Reinforcement 7 | . 1 . . . . . . 3 2 . 1 . . . . Assault 3 | . . . . . . . . 2 . . . . . . 1 Garrison 1 | . . . . 1 . . . . . . . . . . . Intercept . | . . . . . . . . . . . . . . . . Searches Triggered 1 | . . . . . . . . . . . 1 . . . . Construction Impeded 2 | . . . . . . . . . 1 . 1 . . . . Haulers Reinforced . | . . . . . . . . . . . . . . . . Active Scanning Responses . | . . . . . . . . . . . . . . . . Cargo Convoy Interrupts . | . . . . . . . . . . . . . . . . Stealth | -11 -10 -10 -10 -8 -8 -7 -7 -7 -7 -7 -5 -5 -5 -5 -4 --------- Run | Yrd Mat Min Sub Mat Gar Fac Gar Fac Sto Rec Fac Upp Upp War Pro Distress Signals 4 | . . 1 . 1 . . . . 1 . 1 . . . . Communications Jammed . | . . . . . . . . . . . . . . . . Distress Signals . | . . . . . . . . . . . . . . . . Times Spotted 257 | . 24 6 19 12 26 2 16 31 31 3 24 9 17 15 22 Peak Tracking Total 16 | . 6 9 4 4 11 1 4 4 6 3 7 5 4 12 16 Tactical Retreats 18 | . 3 2 2 . . . . 1 4 . 1 . 2 1 2 Traps | -11 -10 -10 -10 -8 -8 -7 -7 -7 -7 -7 -5 -5 -5 -5 -4 ------- Run | Yrd Mat Min Sub Mat Gar Fac Gar Fac Sto Rec Fac Upp Upp War Pro Traps Triggered 18 | . 2 . 2 . 7 . . 3 2 . . . . 2 . Indirectly . | . . . . . . . . . . . . . . . . Trap Hack Attempts . | . . . . . . . . . . . . . . . . Triggered . | . . . . . . . . . . . . . . . . Disarmed . | . . . . . . . . . . . . . . . . Reprogrammed . | . . . . . . . . . . . . . . . . Reused . | . . . . . . . . . . . . . . . . Traps Extracted . | . . . . . . . . . . . . . . . . Installed . | . . . . . . . . . . . . . . . . Triggered 5 | . . . 1 . . . . . . . . 2 . 2 . Machines | -11 -10 -10 -10 -8 -8 -7 -7 -7 -7 -7 -5 -5 -5 -5 -4 ---------- Run | Yrd Mat Min Sub Mat Gar Fac Gar Fac Sto Rec Fac Upp Upp War Pro Machines Disabled 25 | . . . 1 . 4 1 4 3 7 1 3 . 1 . . Max in Single Turn 1 | . . . 1 . 1 1 1 1 1 1 1 . 1 . . Garrison Relay 7 | . . . . . 3 . 4 . . . . . . . . Machines Repaired . | . . . . . . . . . . . . . . . . Machines Dismantled . | . . . . . . . . . . . . . . . . Machines Sabotaged . | . . . . . . . . . . . . . . . . Overloaded Fab Kills . | . . . . . . . . . . . . . . . . Hacking | -11 -10 -10 -10 -8 -8 -7 -7 -7 -7 -7 -5 -5 -5 -5 -4 --------- Run | Yrd Mat Min Sub Mat Gar Fac Gar Fac Sto Rec Fac Upp Upp War Pro Machines Accessed 39 | . 9 . 2 2 2 2 2 5 4 9 1 1 . . . Terminals 20 | . 6 . . 1 2 1 2 4 3 1 . . . . . Fabricators . | . . . . . . . . . . . . . . . . Repair Stations 3 | . 1 . . . . . . . 1 . 1 . . . . Recycling Units 9 | . 2 . . . . . . 1 . 6 . . . . . Scanalyzers . | . . . . . . . . . . . . . . . . Garrison Access 2 | . . . . 1 . 1 . . . . . . . . . Total Hacks 104 | . 25 . 5 6 4 4 6 15 6 30 2 1 . . . Successful 58 | . 7 . 5 4 1 1 2 7 3 26 1 1 . . . Failed 46 | . 18 . . 2 3 3 4 8 3 4 1 . . . . Catastrophic 5 | . . . . . 2 1 . 1 . 1 . . . . . Database Lockouts . | . . . . . . . . . . . . . . . . Manual 44 | . 20 . . 4 . . . 10 2 8 . . . . . Terminals 54 | . 20 . . 4 4 2 6 13 4 1 . . . . . Fabricators . | . . . . . . . . . . . . . . . . Repair Stations 7 | . 3 . . . . . . . 2 . 2 . . . . Recycling Units 12 | . 2 . . . . . . 2 . 8 . . . . . Scanalyzers . | . . . . . . . . . . . . . . . . Garrison Access 4 | . . . . 2 . 2 . . . . . . . . . Terminal Hacks 40 | . 2 . 5 1 1 . 2 5 2 21 . 1 . . . Record 24 | . . . 4 . . . . 1 . 19 . . . . . Robot Analysis 2 | . 2 . . . . . . . . . . . . . . Open Door 4 | . . . . . . . 1 . 2 . . 1 . . . Branch Access Points 1 | . . . . . . . . 1 . . . . . . . Emergency Access Points 2 | . . . . . 1 . 1 . . . . . . . . Terminal Index 1 | . . . . 1 . . . . . . . . . . . Alert Level 1 | . . . . . . . . 1 . . . . . . . Patrol Status 1 | . . . . . . . . 1 . . . . . . . Hauler Manifests 1 | . . . . . . . . 1 . . . . . . . Derelict Proto ID Bank 1 | . . . 1 . . . . . . . . . . . . Release Object 2 | . . . . . . . . . . 2 . . . . . Fabricator Hacks . | . . . . . . . . . . . . . . . . Repair Station Hacks 4 | . 2 . . . . . . . 1 . 1 . . . . Scan Component 3 | . 1 . . . . . . . 1 . 1 . . . . Repair 1 | . 1 . . . . . . . . . . . . . . Recycling Unit Hacks . | . . . . . . . . . . . . . . . . Scanalyzer . | . . . . . . . . . . . . . . . . Garrison Access Hacks 2 | . . . . 1 . 1 . . . . . . . . . Unlock Access 2 | . . . . 1 . 1 . . . . . . . . . Unauthorized Hacks 12 | . 3 . . 2 . . . 2 . 5 . . . . . Terminals 4 | . 1 . . 2 . . . 1 . . . . . . . Botnet 3 | . 1 . . 1 . . . 1 . . . . . . . Operators 1 | . . . . 1 . . . . . . . . . . . Fabricators . | . . . . . . . . . . . . . . . . Repair Stations . | . . . . . . . . . . . . . . . . Recycling Units 8 | . 2 . . . . . . 1 . 5 . . . . . Tunnel 8 | . 2 . . . . . . 1 . 5 . . . . . Scanalyzers . | . . . . . . . . . . . . . . . . Garrison Access . | . . . . . . . . . . . . . . . . Data Cores Recovered 1 | . . . . 1 . . . . . . . . . . . Used . | . . . . . . . . . . . . . . . . Hacking Detections 21 | . 6 . . 1 2 1 2 3 3 2 1 . . . . Full Trace Events 6 | . 3 . . . 1 1 . . . 1 . . . . . Feedback Events 1 | . . . . . . 1 . . . . . . . . . Corruption 1 | . . . . . . 1 . . . . . . . . . Feedback Blocked . | . . . . . . . . . . . . . . . . Robot Schematics Acquired . | . . . . . . . . . . . . . . . . Robots Built . | . . . . . . . . . . . . . . . . Authchips . | . . . . . . . . . . . . . . . . Time . | . . . . . . . . . . . . . . . . Total Robot Build Rating . | . . . . . . . . . . . . . . . . Part Schematics Acquired . | . . . . . . . . . . . . . . . . Parts Built . | . . . . . . . . . . . . . . . . Authchips . | . . . . . . . . . . . . . . . . Time . | . . . . . . . . . . . . . . . . Total Part Build Rating . | . . . . . . . . . . . . . . . . Parts Repaired 1 | . 1 . . . . . . . . . . . . . . Time 26 | . 26 . . . . . . . . . . . . . . Parts Recycled . | . . . . . . . . . . . . . . . . Recycled Matter . | . . . . . . . . . . . . . . . . Retrieved Matter . | . . . . . . . . . . . . . . . . Retrieved Components . | . . . . . . . . . . . . . . . . Parts Scanalyzed . | . . . . . . . . . . . . . . . . Part Schematics Acquired . | . . . . . . . . . . . . . . . . Parts Damaged . | . . . . . . . . . . . . . . . . Bothacking | -11 -10 -10 -10 -8 -8 -7 -7 -7 -7 -7 -5 -5 -5 -5 -4 ------------ Run | Yrd Mat Min Sub Mat Gar Fac Gar Fac Sto Rec Fac Upp Upp War Pro Used RIF Installer . | . . . . . . . . . . . . . . . . Robots Hacked . | . . . . . . . . . . . . . . . . Non-combat . | . . . . . . . . . . . . . . . . Combat . | . . . . . . . . . . . . . . . . Robot Hacks Applied . | . . . . . . . . . . . . . . . . Relay Couplers Released 29 | . . . . . 11 . 18 . . . . . . . . Machine Destruction 26 | . . . . . 11 . 15 . . . . . . . . Programmers 3 | . . . . . . . 3 . . . . . . . . Fabnet Peak Effective % . | . . . . . . . . . . . . . . . . Robots Rewired 3 | . . . . . . . 3 . . . . . . . . Allies Hacked . | . . . . . . . . . . . . . . . . Hacks Repelled . | . . . . . . . . . . . . . . . . Allies | -11 -10 -10 -10 -8 -8 -7 -7 -7 -7 -7 -5 -5 -5 -5 -4 -------- Run | Yrd Mat Min Sub Mat Gar Fac Gar Fac Sto Rec Fac Upp Upp War Pro Total Allies 16 | . . . . . . . 3 3 10 . . . . . . Largest Group 10 | . . . . . . . 3 3 10 10 . . . . . Highest-Rated Group 173 | . . . . . . . 98 93 173 173 . . . . . Highest-Rated Ally 39 | . . . . . . . 39 31 29 29 . . . . . Total Orders 4 | . . . . . . . . . . 4 . . . . . STAY 3 | . . . . . . . . . . 3 . . . . . FOLLOW 1 | . . . . . . . . . . 1 . . . . . Ally Attacks 112 | . . . . . . . 28 51 . 33 . . . . . Total Damage 1433 | . . . . . . . 295 755 . 383 . . . . . Kills 13 | . . . . . . . 3 5 . 5 . . . . . Allies Corrupted . | . . . . . . . . . . . . . . . . Allies Melted . | . . . . . . . . . . . . . . . . Intel | -11 -10 -10 -10 -8 -8 -7 -7 -7 -7 -7 -5 -5 -5 -5 -4 ------- Run | Yrd Mat Min Sub Mat Gar Fac Gar Fac Sto Rec Fac Upp Upp War Pro Robot Analysis Total 2 | . 2 . . . . . . . . . . . . . . Derelict Logs Recovered 5 | . . 1 2 . . . . . . . . 2 . . . Drone Launches . | . . . . . . . . . . . . . . . . Drone Recoveries . | . . . . . . . . . . . . . . . . Exploration | -11 -10 -10 -10 -8 -8 -7 -7 -7 -7 -7 -5 -5 -5 -5 -4 ------------- Run | Yrd Mat Min Sub Mat Gar Fac Gar Fac Sto Rec Fac Upp Upp War Pro Turns Passed 18211 | 131 1681 625 4838 353 1891 280 878 969 1108 1878 958 988 1255 263 115 Spaces Moved 7666 | 64 689 137 1710 130 794 164 455 511 497 953 390 408 437 107 220 Core 267 | 4 . . . . . . . . . . . . . 43 220 Treads 7399 | 60 689 137 1710 130 794 164 455 511 497 953 390 408 437 64 . Legs . | . . . . . . . . . . . . . . . . Wheels . | . . . . . . . . . . . . . . . . Hover . | . . . . . . . . . . . . . . . . Flight . | . . . . . . . . . . . . . . . . Fastest Speed 50 | 50 160 240 240 160 160 160 160 156 163 138 117 164 164 50 50 Average Speed 181 | 153 181 240 240 160 201 160 160 160 165 160 141 164 166 119 50 Slowest Speed 320 | 160 240 240 240 160 240 160 160 165 167 320 210 164 168 167 50 Overloaded Moves . | . . . . . . . . . . . . . . . . Propulsion Burnouts . | . . . . . . . . . . . . . . . . Robots Hopped . | . . . . . . . . . . . . . . . . Cave-ins Triggered . | . . . . . . . . . . . . . . . . Exploration Rate (%) 45 | 4 90 30 88 14 70 9 56 16 69 96 10 55 57 19 38 Regions Visited 15 Branch Regions 8 Pre-discovered Areas 12 | . 2 1 3 . . . . 1 . 5 . . . . . Known Exits Taken 7 | . . . 1 1 . 1 . 1 1 . 1 1 . . . Unknown Exits Taken 6 | 1 1 1 . . . . . . . 1 . . 1 1 . Scrap Searched 23 | . . 1 13 . . . . . . . . 2 4 . 3 Spaces Dug 52 | . . . . . 8 . . 3 . . . 21 20 . . Terrain Destroyed 290 | . . . . 2 26 1 5 30 52 3 74 43 51 3 . Melee . | . . . . . . . . . . . . . . . . Projectile 86 | . . . . 2 . 1 3 12 3 3 9 18 32 3 . AOE 203 | . . . . . 25 . 2 18 49 . 65 25 19 . . Terrain Rammed . | . . . . . . . . . . . . . . . . Walls Destroyed . | . . . . . . . . . . . . . . . . Machines Disabled . | . . . . . . . . . . . . . . . . Actions | -11 -10 -10 -10 -8 -8 -7 -7 -7 -7 -7 -5 -5 -5 -5 -4 --------- Run | Yrd Mat Min Sub Mat Gar Fac Gar Fac Sto Rec Fac Upp Upp War Pro Total 10920 | 81 1014 399 2224 195 946 176 559 604 690 1257 703 713 925 210 224 Wait 2044 | . 199 235 344 3 8 1 23 21 34 237 201 265 424 48 1 Move 7651 | 63 688 136 1709 130 791 164 454 510 496 952 389 407 436 106 220 Hop . | . . . . . . . . . . . . . . . . Pick Up 127 | 4 31 3 15 8 12 1 1 7 16 2 14 6 6 1 . Fast Attach 58 | 7 3 . 2 3 7 . . 2 10 2 10 4 5 . 3 Attach 53 | . 1 . 6 7 8 2 3 5 5 1 4 3 3 5 . Detach 6 | . . . . . . . . . . 1 3 1 1 . . Swap 55 | . 8 5 9 . 7 . 3 7 10 1 2 2 . 1 . Drop 141 | . 19 3 14 4 11 . 1 5 19 12 23 8 9 13 . Fire 722 | 7 57 17 124 40 91 8 37 46 97 49 55 17 41 36 . Melee . | . . . . . . . . . . . . . . . . Ram . | . . . . . . . . . . . . . . . . Kick . | . . . . . . . . . . . . . . . . Crush 12 | . 8 . . . . . . 1 1 . 2 . . . . Escape Stasis 13 | . . . . . 11 . . . 2 . . . . . . Rewire 38 | . . . 1 . . . 37 . . . . . . . . Trap . | . . . . . . . . . . . . . . . . Miscellaneous . | . . . . . . . . . . . . . . . . Route ------- -11/Scrapyard -10/Materials (discovered 5 exits: [*Mat x3] / [*Min x2]) -10/Mines (discovered 2 exits: [*Mat] / *Sub) -10/Subcaves (discovered 3 exits: *Mat x2 / Rec) -8/Materials -8/Garrison (discovered 3 exits: *Fac x3) -7/Factory (discovered 3 exits: [*Fac] / *Low / Gar) -7/Garrison (discovered 2 exits: *Fac x2) -7/Factory (discovered 4 exits: [*Fac] / *Sto / Low x2) -7/Storage (discovered 2 exits: [*Fac] / *Rec) -7/Recycling -5/Factory (discovered 2 exits: *Upp x2) -5/Upper Caves -5/Upper Caves -5/Warlord -4/Proximity Caves History --------- Turn | Location | Event 8 | -11/Scrapyard | Discovered new exit (range 15) 132 | -11/Scrapyard | Entered Materials 304 | -10/Materials | Build established: Mutant 472 | -10/Materials | Discovered new exit (range 4) 1015 | -10/Materials | Repaired Lgt. Treads 1098 | -10/Materials | Discovered new exit (range 7) 1317 | -10/Materials | Discovered new exit (range 8) 1356 | -10/Materials | Discovered new exit (range 16) 1515 | -10/Materials | Discovered new exit (range 16) 1813 | -10/Materials | Entered Mines 1864 | -10/Mines | Learned location of Mines (-9) 1870 | -10/Mines | YI-UF0 nonchalantly dropped a Grenade Launcher on the ground 1878 | -10/Mines | Discovered new exit (range 8) 1968 | -10/Mines | Murdered YI-UF0 1987 | -10/Mines | Found Prototype Storage 1988 | -10/Mines | Identified YI-UF0's Bottomless Matter Pit 1997 | -10/Mines | Found Prototype Launcher 1998 | -10/Mines | Identified YI-UF0's Doublenader 2035 | -10/Mines | Assembled infested the area 2363 | -10/Mines | Discovered new exit (range 6) 2438 | -10/Mines | Entered Subcaves 2478 | -10/Subcaves | Visited Clippyterm 2485 | -10/Subcaves | Identified exit to Materials 2485 | -10/Subcaves | Identified exit to Recycling 2485 | -10/Subcaves | Learned location of Deep Caves (-6) 2893 | -10/Subcaves | Ambushed by Subdwellers from Twisted Machinery 3040 | -10/Subcaves | Core integrity fell below 50% 3171 | -10/Subcaves | Learned location of Storage (-7) 3970 | -10/Subcaves | Shifting Twisted Machinery released Sub. Laser 3978 | -10/Subcaves | Shifting Twisted Machinery released Flamer 4528 | -10/Subcaves | Visited 4L-MR0's lab 4667 | -10/Subcaves | Found Rainbow Chip 4767 | -10/Subcaves | A swath of the cavern ceiling suddenly collapsed 5197 | -10/Subcaves | A swath of the cavern ceiling suddenly collapsed 6464 | -10/Subcaves | Core integrity fell below 20% 7276 | -10/Subcaves | Entered Materials 7276 | -8/Materials | Evolved 4 slots: Propulsion x1, Utility x3 7557 | -8/Materials | Garrison activated, responded to threat 7629 | -8/Materials | Identified exit to Garrison 7629 | -8/Materials | Entered Garrison 7665 | -8/Garrison | Triggered checkpoint 7703 | -8/Garrison | Garrison Relay disabled 7789 | -8/Garrison | Triggered checkpoint 7794 | -8/Garrison | Triggered checkpoint 7835 | -8/Garrison | Destroyed 11 combat bots 7961 | -8/Garrison | Triggered checkpoint 8032 | -8/Garrison | Garrison Relay disabled 8068 | -8/Garrison | Discovered new exit (range 10) 8201 | -8/Garrison | Build established: Scavenger-Mutant 8326 | -8/Garrison | Discovered new exit (range 10) 8428 | -8/Garrison | Spotted B-75 Beast 8476 | -8/Garrison | Destroyed B-75 Beast 8497 | -8/Garrison | Lost 5 parts (3n1u1w) 8864 | -8/Garrison | Garrison Relay disabled 9007 | -8/Garrison | Discovered new exit (range 14) 9043 | -8/Garrison | Attempted to access garrison exit controls, blocked by remote lockdown 9097 | -8/Garrison | Triggered checkpoint 9311 | -8/Garrison | Attempted to access garrison exit controls, blocked by remote lockdown 9427 | -8/Garrison | Triggered checkpoint 9520 | -8/Garrison | Entered Factory 9520 | -7/Factory | Evolved 2 slots: Propulsion x1, Utility x1 9630 | -7/Factory | Discovered new exit (range 15) 9729 | -7/Factory | Discovered new exit (range 15) 9800 | -7/Factory | Identified exit to Garrison 9800 | -7/Factory | Entered Garrison 10004 | -7/Garrison | Triggered checkpoint 10039 | -7/Garrison | Garrison Relay disabled 10112 | -7/Garrison | Triggered checkpoint 10200 | -7/Garrison | Discovered new exit (range 14) 10330 | -7/Garrison | Garrison Relay disabled 10527 | -7/Garrison | Discovered new exit (range 9) 10595 | -7/Garrison | Garrison Relay disabled 10613 | -7/Garrison | Garrison Relay disabled 10678 | -7/Garrison | Entered Factory 10824 | -7/Factory | Allied Derelicts emerged from ambush trap array 10838 | -7/Factory | Identified exit to Storage 10838 | -7/Factory | Identified exit to Lower Caves 11078 | -7/Factory | First assault squad dispatched 11509 | -7/Factory | Discovered new exit (range 15) 11515 | -7/Factory | Destroyed 7 combat bots 11521 | -7/Factory | Lost 5 parts (2n3u) 11647 | -7/Factory | Entered Storage 11740 | -7/Storage | Met 01-MTF 11904 | -7/Storage | System corruption reached 10% 12035 | -7/Storage | Build established: Mutant 12147 | -7/Storage | Destroyed 8 combat bots 12199 | -7/Storage | Discovered new exit (range 16) 12625 | -7/Storage | Destroyed 01-MTF 12662 | -7/Storage | Assisted by bots powering up and referring to "LRC-V3" 12741 | -7/Storage | Used back door to open Recycling access 12741 | -7/Storage | Discovered exit to Recycling (range 3) 12755 | -7/Storage | Entered Recycling 12755 | -7/Recycling | Accompanied by 10 allies 12949 | -7/Recycling | Build established: Commander-Mutant 13043 | -7/Recycling | Scanned before Scraplab entrance 13085 | -7/Recycling | Discovered new exit (range 5) 13895 | -7/Recycling | Entered Scraplab 13896 | -7/Recycling | Angered Scraplab inhabitants 13908 | -7/Recycling | Found Prototype Device 13908 | -7/Recycling | Identified Scrap Engine 14114 | -7/Recycling | Murdered 4 allies 14633 | -7/Recycling | Entered Factory 14633 | -5/Factory | Evolved 4 slots: Power x1, Propulsion x1, Utility x1, Weapon x1 14750 | -5/Factory | Discovered new exit (range 12) 14933 | -5/Factory | Search patrols dispatched 15173 | -5/Factory | Spotted B-75 Beast 15213 | -5/Factory | Discovered new exit (range 4) 15448 | -5/Factory | Build established: Gunner 15497 | -5/Factory | Destroyed B-75 Beast 15549 | -5/Factory | Identified exit to Upper Caves 15591 | -5/Factory | Entered Upper Caves 15858 | -5/Upper Caves | Build established: Scavenger-Mutant 16080 | -5/Upper Caves | Learned location of 1 exit from Factory 16346 | -5/Upper Caves | Build established: Construct 16432 | -5/Upper Caves | Discovered new exit (range 13) 16447 | -5/Upper Caves | Learned location of 1 exit from Factory 16450 | -5/Upper Caves | Identified exit to Upper Caves 16579 | -5/Upper Caves | Entered another Upper Caves area 16612 | -5/Upper Caves | Attracted the attention of an 0b10 checkpoint 17478 | -5/Upper Caves | Found Imp. Powered Armor 17725 | -5/Upper Caves | Discovered new exit (range 7) 17807 | -5/Upper Caves | Acquired the password to a Derelict Tinkerer's latest research 17834 | -5/Upper Caves | Entered Warlord 17896 | -5/Warlord | Attacked by Warlord forces 17915 | -5/Warlord | Spotted WW-RQP(B) 17915 | -5/Warlord | Spotted VK-JM5(B) 18035 | -5/Warlord | Destroyed WW-RQP(B) 18065 | -5/Warlord | Warlord's base attacked by MAIN.C 18067 | -5/Warlord | Destroyed LV-01A 18073 | -5/Warlord | Attached Rainbow Chip, gained temporary slots: Power, Propulsion, Utility, Weapon 18091 | -5/Warlord | Discovered new exit (range 15) 18097 | -5/Warlord | Entered Proximity Caves 18122 | -4/Proximity Caves | Lost 9 parts (4n4u1w) 18147 | -4/Proximity Caves | Attracted the attention of an 0b10 outpost 18147 | -4/Proximity Caves | Core integrity fell below 50% 18198 | -4/Proximity Caves | Core integrity fell below 20% 18212 | -4/Proximity Caves | Destroyed by P-70 Sage with Tesla Rifle Last Messages --------------- 18168_ Core Analyzer destroyed. 18183_ S-27 Virus destroyed. 18195_ Penetrated by Slug. 18195_ Rainbow Chip destroyed. 18196_ Temporary Power slot lost. 18196_ Temporary Propulsion slot lost. 18196_ Temporary Utility slot lost. 18196_ Temporary Weapon slot lost. 18206_ Terrain Scan Processor destroyed. 18206_ Mak. Salvage Targeting Computer destroyed. 18206_ System corrupted by crushing effect (+5). 18206_ System corrupted by crushing effect (+1). 18206_ Knocked back. 18212_ C-30 ARC bursts open, deploying its payload. 18212_ G-73 Enforcer unfolds itself. 18212_ L-61 Swordsman unfolds itself. 18212_ G-67 Veteran unfolds itself. 18212_ M-36 Artificer unfolds itself. Map ----- +----------------------------------------------------+ | ## #?# ####### #?????????????????### ##????? | | ?# #?# ########?####?????# #????? | | ## #?## ### ###???# #????? | | # ### ##### ##??## #????? | | ###???# ##??#####%=##????? | | # ##?????# #??????# #?????? | | # ##??????# ## #?????# #?????? | | ####???????###### ##?# ##?????# ##????? | | ##???????????????# #???####??????# #????? | | #?????????????????# ##????????????## ##????? | | ???????????###????# ###??????????#### #?????? | | #???????##### ##??# ##????????#### ## #?????? | | ???????## ?## #??####### ## ##????? | | ???# ## ## ##### ## #????? | | ??# ## #????? | | ??? ### ## #????? | | ??? #?## ### ##????? | | ????? ## ## l## ####??## ##### #?????? | | ???????# ???# ####??????## #???# #????? | | ??????# ?????# p##????????## ##???# #????? | | ??????? ### ##????????## ##???? #????? | | ??????# ##??????#?###????? #????? | | ?????# ##???? ######???? #????? | | ?????? ### ## #### ###?? ## ????? | | ?????????## #?## g #?# ?? ????? | | ??????????## #???# @l g s # ?? ???? | | ???????????##???# g #g g ?? ???? | | ???????????????# m #????? ??? ??? | | ??????????????# ## #???????? ??? ??? | | ?????????????# ###? #???????? ???????? | | ?????????????# ##???? #?????????????????? | | ?????????????# ##????? ????????????????? | | ???????????? #???????# ???????????????? | | ???????????? ????????? ??????????????? | | ???????????? ## ?????????? ?????????????? | | ????????????? ?## ??????????# ????????????? | | ??????????????????###???????????### ????????????? | | ?????????????????????????????????????????????????? | | ?????????????????????????????????????????????????? | | ?????????????????????????????????????????????????? | | ?????????????????????????????????????????????????? | | ?????????????????????????????????????????????????? | | ?????????????????????????????????????????????????? | | ?????????????????????????????????????????????????? | | ?????????????????????????????????????????????????? | | ?????????????????????????????????????????????????? | | ?????????????????????????????????????????????????? | | ?????????????????????????????????????????????????? | | ?????????????????????????????????????????????????? | | ?????????????????????????????????????????????????? | +----------------------------------------------------+ Best States ------------- Heat Dissipation 86 Coolant Potential 65 Energy Generation 29 Energy Capacity 365 Matter Stores 300 Matter Capacity 1800 Sight Range 16 Terrain Scan Density 85 Jamming Range 12 Cloak Strength 2 Armor Coverage 225 Resistance: TH 15 Core Shielding 20 Weapon Cycling 30 Evasion (%) 50 Targeting Accuracy 8 Core Analysis 9 Recoil Reduction 5 Matter Filtering 50 Salvage Targeting 4 Offensive Hacking 11 Item Schematics ----------------- None Robot Schematics ------------------ None Fabricated ------------ Nothing Alien Tech Used ----------------- None Achievements -------------- None Challenges ------------ None Game ------ Seed BattleGatlingAxe Manual? 0 Play Time 01:33:12 Cumulative 911.6 hours Start 2024.11.14 @ 19:10:24 End 2024.11.14 @ 20:55:42 Sessions 1 Manual Loads 0 Difficulty Rogue Special Mode None Game No. 567 Rogue 560 Adventurer 0 Explorer 7 Win Type - Total 62 Types 23/6/21/2/0/1/6/1/2 Lore% 85 Gallery% 95 Achievement% 85 Wizard Run 0 Options --------- Layout 2 ASCII 0 Keyboard 0 Movement Numpad Keybinds 0 Fullscreen 1 Font 24/Smallcaps Map View 50x44 Zoom Use 0% Tactical HUD 1 Map Filters NONE Filters NONE Steam 1 RUN: 4b308aab-5a6b-45a4-b417-9e723a936a0f